bitfinex/quotes_SOLUSD_20250207
["timestamp","ask_amount","ask_price","bid_price","bid_amount"]
[1738893400191,3.51401,193.59,193.44,47.36036835]
[1738893400192,42.19086835,193.51,193.44,47.36036835]
[1738893400390,42.19086835,193.48,193.44,5.1695]
[1738893400594,42.19086835,193.49,193.44,5.1695]
[1738893400912,42.19086835,193.5,193.44,5.1695]
[1738893401410,42.19086835,193.48,193.42,5.1699]
[1738893401597,42.19086835,193.49,193.42,47.36076835]
[1738893401990,42.19086835,193.53,193.46,42.19086835]
[1738893402192,42.19086835,193.54,193.47,42.19086835]
[1738893402407,42.19086835,193.53,193.46,42.19086835]
[1738893402607,42.19086835,193.54,193.47,42.19086835]
[1738893402901,42.19086835,193.56,193.49,42.19086835]
[1738893403482,42.19086835,193.55,193.48,42.19086835]
[1738893403678,42.19086835,193.58,193.51,5.1676]
[1738893403891,0.03,193.6,193.49,47.35896835]
[1738893403892,42.19086835,193.56,193.49,47.35896835]
[1738893404103,42.19086835,193.56,193.49,5.1681]
[1738893404605,42.19086835,193.55,193.49,5.1681]
[1738893405492,42.19086835,193.54,193.47,5.1685]
[1738893405699,42.19086835,193.5,193.47,5.1685]
[1738893406705,42.19086835,193.5,193.44,0.063]
[1738893407106,42.19086835,193.53,193.46,42.19086835]
[1738893407303,42.19086835,193.56,193.49,42.19086835]
[1738893407677,42.19086835,193.53,193.46,62.19086835]
[1738893407883,1.41471,193.59,193.44,0.063]
[1738893408110,1.0,193.58,193.44,0.063]
[1738893408405,0.41471,193.57,193.44,0.063]
[1738893408609,3.0998,193.56,193.44,0.063]
[1738893408782,0.41471,193.55,193.44,0.063]
[1738893408983,42.19086835,193.49,193.44,0.063]
[1738893409606,42.19086835,193.48,193.44,0.063]
[1738893409807,42.19086835,193.45,193.44,0.063]
[1738893410105,42.19086835,193.49,193.44,0.063]
[1738893410287,42.19086835,193.5,193.44,0.063]
[1738893410485,3.51451,193.56,193.44,42.25386835]
[1738893411105,42.19086835,193.5,193.44,0.063]
[1738893411313,42.19086835,193.5,193.44,5.2325]
[1738893411888,42.19086835,193.53,193.46,42.19086835]
[1738893412108,42.19086835,193.57,193.5,42.19086835]
[1738893413288,42.19086835,193.56,193.5,5.1679]
[1738893414994,42.19086835,193.52,193.48,5.1684]
[1738893415294,42.19086835,193.5,193.45,5.1692]
[1738893415810,42.19086835,193.51,193.45,5.1692]
[1738893416180,42.19086835,193.5,193.45,5.1692]
[1738893417998,42.19086835,193.55,193.48,42.19086835]
[1738893418203,42.19086835,193.56,193.49,42.19086835]
[1738893418985,42.19086835,193.56,193.49,5.1682]
[1738893419317,42.19086835,193.56,193.49,47.35906835]
[1738893419615,42.19086835,193.52,193.49,5.1682]
[1738893419791,42.19086835,193.5,193.45,5.1692]
[1738893419986,42.19086835,193.52,193.45,47.36006835]
[1738893420199,42.19086835,193.53,193.45,60.28326835]
[1738893420402,1.0,193.57,193.45,5.1692]
[1738893420614,0.41471,193.56,193.45,5.1692]
[1738893421017,31.8498,193.55,193.44,0.063]
[1738893421188,1.0,193.53,193.44,0.063]
[1738893421520,42.19086835,193.45,193.44,0.063]
[1738893421692,42.19086835,193.52,193.44,42.25386835]
[1738893421891,6.6089,193.59,193.48,42.19086835]
[1738893421892,42.19086835,193.55,193.48,42.19086835]
[1738893422092,6.6089,193.59,193.46,0.25098]
[1738893422309,0.03,193.6,193.47,0.77501221]
[1738893422514,0.03,193.6,193.48,13.78831853]
[1738893422822,0.03,193.6,193.51,20.0]
[1738893423122,42.19086835,193.59,193.53,18.0849]
[1738893423489,0.03,193.6,193.53,61.0506384]
[1738893424001,42.22086835,193.6,193.53,60.27576835]
[1738893424595,42.19086835,193.58,193.51,5.94228273]
[1738893424797,42.19086835,193.52,193.39,42.96569494]
[1738893425111,42.19086835,193.54,193.46,42.19086835]
[1738893425323,42.19086835,193.52,193.45,0.063]
[1738893425497,42.19086835,193.5,193.45,0.063]
[1738893425693,1.0,193.59,193.45,0.063]
[1738893425694,42.19086835,193.54,193.46,42.19086835]
[1738893425914,42.19086835,193.56,193.48,42.19086835]
[1738893426218,42.19086835,193.54,193.46,5.48]
[1738893426799,42.19086835,193.52,193.47,5.1687]
[1738893427615,42.19086835,193.5,193.45,0.063]
[1738893427815,42.19086835,193.48,193.45,0.063]
[1738893428010,2.41471,193.58,193.45,0.063]
[1738893428011,42.19086835,193.46,193.45,0.063]
[1738893429825,42.60557835,193.46,193.45,0.063]
[1738893430911,42.19086835,193.46,193.45,0.063]
[1738893431102,42.60557835,193.46,193.45,0.063]
[1738893431904,1.0,193.43,193.32,0.063]
[1738893432123,42.19086835,193.33,193.32,0.063]
[1738893432435,42.19086835,193.34,193.32,0.063]
[1738893432614,42.19086835,193.4,193.32,0.063]
[1738893432615,42.19086835,193.33,193.32,0.063]
[1738893433921,42.60557835,193.33,193.32,0.063]
[1738893435048,42.19086835,193.33,193.32,0.063]
[1738893435324,42.19086835,193.34,193.32,0.063]
[1738893435530,42.19086835,193.33,193.32,0.063]
[1738893435727,0.41471,193.42,193.32,0.063]
[1738893435904,3.1018,193.44,193.32,0.063]
[1738893436107,1.41471,193.43,193.32,0.063]
[1738893436631,0.41471,193.43,193.32,0.063]
[1738893436808,4.102,193.42,193.32,0.063]
[1738893437008,42.19086835,193.35,193.32,0.063]
[1738893437223,42.19086835,193.34,193.32,0.063]
[1738893438608,42.19086835,193.33,193.32,0.063]
[1738893439323,13.41184853,193.42,193.32,0.063]
[1738893439324,42.19086835,193.37,193.32,0.063]
[1738893439723,42.19086835,193.36,193.32,0.063]
[1738893439931,42.19086835,193.34,193.32,0.063]
[1738893440119,42.19086835,193.35,193.32,0.063]
[1738893440426,3.51721,193.39,193.32,0.063]
[1738893440427,42.19086835,193.39,193.32,42.25386835]
[1738893440825,42.19086835,193.39,193.32,0.063]
[1738893441033,42.19086835,193.38,193.32,0.063]
[1738893441207,42.19086835,193.34,193.32,0.063]
[1738893441808,42.19086835,193.36,193.32,0.063]
[1738893442012,42.19086835,193.37,193.32,0.063]
[1738893442510,3.51661,193.43,193.32,0.063]
[1738893442812,0.41471,193.43,193.32,0.063]
[1738893443016,42.19086835,193.39,193.32,0.063]
[1738893443430,42.19086835,193.39,193.32,42.25386835]
[1738893444026,42.19086835,193.39,193.33,5.1725]
[1738893445020,42.19086835,193.41,193.33,47.36336835]
[1738893445244,42.19086835,193.41,193.34,42.19086835]
[1738893445419,42.19086835,193.4,193.33,60.29456835]
[1738893445621,42.19086835,193.4,193.33,18.1037]
[1738893446236,42.19086835,193.4,193.33,55.12206835]
[1738893446635,25.69111029,193.4,193.33,12.9312]
[1738893446946,25.69111029,193.35,193.32,0.063]
[1738893447125,25.69111029,193.4,193.32,0.063]
[1738893447126,25.69111029,193.33,193.32,0.063]
[1738893448635,25.69111029,193.36,193.32,0.063]
[1738893448945,25.69111029,193.34,193.32,0.063]
[1738893449131,25.69111029,193.33,193.32,0.063]
[1738893451129,25.69111029,193.35,193.32,0.063]
[1738893451324,25.69111029,193.34,193.32,0.063]
[1738893451530,26.10582029,193.33,193.32,0.063]
[1738893452545,29.20932029,193.33,193.32,0.063]
[1738893453221,26.10582029,193.33,193.32,0.063]
[1738893453563,1.0,193.28,193.25,0.063]
[1738893453756,1.0,193.28,193.24,0.063]
[1738893453757,26.69111029,193.26,193.24,0.063]
[1738893453922,26.10582029,193.25,193.24,0.063]
[1738893454341,29.21052029,193.25,193.24,0.063]
[1738893455042,30.21052029,193.25,193.18,0.063]
[1738893455270,25.69111029,193.19,193.18,0.063]
[1738893455422,26.10582029,193.19,193.18,0.063]
[1738893455939,25.69111029,193.19,193.18,0.063]
[1738893456682,26.10582029,193.19,193.18,0.063]
[1738893457847,25.69111029,193.19,193.18,0.063]
[1738893458249,25.69111029,193.22,193.18,0.063]
[1738893458451,25.69111029,193.2,193.18,0.063]
[1738893458651,26.10582029,193.19,193.18,0.063]
[1738893459879,30.21152029,193.19,193.18,0.063]
[1738893460060,29.21152029,193.19,193.18,0.063]
[1738893460577,30.21152029,193.19,193.18,0.063]
[1738893460880,1.0,193.18,193.12,0.063]
[1738893461080,25.69111029,193.13,193.12,0.063]
[1738893464960,26.10582029,193.13,193.12,0.063]
[1738893466579,25.69111029,193.13,193.12,0.063]
[1738893467467,25.69111029,193.21,193.12,25.75411029]
[1738893467680,0.41471,193.25,193.13,5.3]
[1738893467872,25.69111029,193.23,193.13,5.3]
[1738893468192,0.41471,193.25,193.13,5.3]
[1738893468396,0.41471,193.25,193.14,5.1775]
[1738893468551,25.69111029,193.22,193.15,25.69111029]
[1738893469182,25.69111029,193.21,193.14,30.86861029]
[1738893469877,25.69111029,193.21,193.14,25.69111029]
[1738893470255,25.69111029,193.2,193.13,36.16891029]
[1738893470883,25.69111029,193.22,193.15,25.69111029]
[1738893471087,25.69111029,193.23,193.16,25.69111029]
[1738893471465,26.10582029,193.24,193.16,25.69111029]
[1738893471879,0.063,193.23,193.16,25.69111029]
[1738893472165,0.063,193.23,193.17,5.1767]
[1738893472385,0.063,193.23,193.22,25.69111029]
[1738893472560,0.063,193.23,193.21,25.69111029]
[1738893472873,0.063,193.23,193.18,25.69111029]
[1738893473075,0.063,193.23,193.17,43.80971029]
[1738893473465,0.063,193.23,193.18,25.69111029]
[1738893474060,0.063,193.23,193.19,5.1762]
[1738893476069,25.75411029,193.23,193.16,30.86791029]
[1738893476397,25.69111029,193.21,193.16,5.1768]
[1738893476697,25.69111029,193.22,193.16,5.1768]
[1738893478354,25.75411029,193.23,193.16,30.86791029]
[1738893478887,25.75411029,193.23,193.18,25.69111029]
[1738893478888,0.063,193.23,193.18,25.69111029]
[1738893479185,0.063,193.23,193.17,25.69111029]
[1738893479568,0.063,193.23,193.18,25.69111029]
[1738893479969,0.063,193.23,193.17,25.69111029]
[1738893480172,0.063,193.23,193.18,25.69111029]
[1738893480791,25.69111029,193.21,193.15,5.24]
[1738893480991,0.063,193.23,193.13,0.03]
[1738893480992,0.41471,193.2,193.13,0.03]
[1738893481298,1.41471,193.2,193.13,0.03]
[1738893481463,22.0,193.18,193.13,0.03]
[1738893481672,1.0,193.16,193.13,0.03]
[1738893481997,0.41471,193.17,193.12,0.063]
[1738893481998,1.0,193.13,193.12,0.063]
[1738893482172,52.79693058,193.13,193.12,0.063]
[1738893482557,52.79693058,193.13,193.04,0.063]
[1738893482558,1.0,193.1,193.04,0.063]
[1738893482808,25.69111029,193.05,193.04,0.063]
[1738893483871,26.10582029,193.05,193.04,0.063]
[1738893485163,25.69111029,193.06,193.04,0.063]
[1738893485483,26.10582029,193.05,193.04,0.063]
[1738893487683,25.69111029,193.06,193.04,0.063]
[1738893487884,25.69111029,193.05,193.04,0.063]
[1738893489592,21.0,193.03,192.98,0.063]
[1738893489884,72.79693058,193.03,193.02,0.0001]
[1738893490272,86.33426911,193.03,193.02,0.0001]
[1738893490483,86.33426911,193.03,192.98,0.063]
[1738893490484,7.3933,193.01,192.98,0.063]
[1738893490685,25.69111029,192.99,192.98,0.063]
[1738893493886,28.80001029,192.99,192.98,0.063]
[1738893494579,29.21472029,192.99,192.98,0.063]
[1738893495602,30.21472029,192.99,192.98,0.063]
[1738893495784,31.21472029,192.99,192.98,0.063]
[1738893495983,1.0,192.97,192.93,0.03]
[1738893496184,25.69111029,192.94,192.93,0.03]
[1738893496910,27.10582029,192.94,192.93,0.03]
[1738893497076,28.10582029,192.94,192.93,0.03]
[1738893497573,31.21552029,192.94,192.93,0.03]
[1738893497769,29.21552029,192.94,192.93,0.03]
[1738893498083,26.10582029,192.94,192.93,0.03]
[1738893498289,29.21552029,192.94,192.93,0.03]
[1738893499016,26.10582029,192.94,192.93,0.03]
[1738893499309,29.21552029,192.94,192.93,0.03]
[1738893499513,26.10582029,192.94,192.93,0.03]
[1738893500173,25.69111029,192.94,192.93,0.03]
[1738893500786,28.80081029,192.94,192.93,0.03]
[1738893501813,30.80081029,192.94,192.93,0.03]
[1738893502107,29.80081029,192.94,192.93,0.03]
[1738893502309,30.21552029,192.94,192.93,0.03]
[1738893502772,1.0,192.93,192.82,0.063]
[1738893502976,25.69111029,192.86,192.82,0.063]
[1738893503372,25.69111029,192.85,192.82,0.063]
[1738893503601,25.69111029,192.83,192.82,0.063]
[1738893505312,26.10582029,192.83,192.82,0.063]
[1738893505794,25.69111029,192.86,192.82,0.063]
[1738893506299,25.69111029,192.83,192.82,0.063]
[1738893507417,25.69111029,192.87,192.82,0.063]
[1738893507590,26.10582029,192.89,192.82,0.063]
[1738893507800,25.69111029,192.86,192.82,0.063]
[1738893507995,25.69111029,192.85,192.82,0.063]
[1738893509077,25.69111029,192.86,192.82,0.063]
[1738893509675,25.69111029,192.84,192.82,0.063]
[1738893510214,25.69111029,192.87,192.82,0.063]
[1738893510507,0.41471,192.86,192.82,0.063]
[1738893510683,26.10582029,192.86,192.82,0.063]
[1738893511098,25.69111029,192.85,192.82,0.063]
[1738893511283,25.69111029,192.83,192.82,0.063]
[1738893512297,26.69111029,192.83,192.82,0.063]
[1738893512696,37.16698499,192.83,192.82,0.063]
[1738893512905,39.27848499,192.83,192.82,0.063]
[1738893513107,40.27848499,192.83,192.82,0.063]
[1738893513677,19.27848499,192.83,192.82,0.063]
[1738893514320,19.69319499,192.83,192.82,0.063]
[1738893514622,29.38837448,192.83,192.82,0.063]
[1738893514787,30.38837448,192.83,192.82,0.063]
[1738893514977,29.38837448,192.83,192.82,0.063]
[1738893516883,26.27687448,192.83,192.82,0.063]
[1738893517087,25.86216448,192.84,192.82,0.063]
[1738893517285,26.27687448,192.84,192.82,0.063]
[1738893517587,25.86216448,192.83,192.82,0.063]
[1738893518106,28.97366448,192.83,192.82,0.063]
[1738893518322,25.86216448,192.85,192.82,0.063]
[1738893518497,25.86216448,192.87,192.82,0.063]
[1738893518823,25.86216448,192.86,192.82,0.063]
[1738893519806,25.86216448,192.83,192.82,0.063]
[1738893521918,26.27687448,192.88,192.82,0.063]
[1738893522090,25.86216448,192.87,192.82,0.063]
[1738893522287,25.86216448,192.91,192.84,25.86216448]
[1738893522517,25.86216448,192.92,192.85,25.86216448]
[1738893522685,26.33987448,192.93,192.86,25.86216448]
[1738893523281,26.33987448,192.93,192.86,5.1851]
[1738893525019,0.47771,192.93,192.86,31.04726448]
[1738893525428,0.063,192.93,192.87,25.86216448]
[1738893525594,0.063,192.93,192.86,5.1851]
[1738893525595,26.33987448,192.93,192.86,5.1851]
[1738893525921,25.86216448,192.89,192.83,5.1858]
[1738893526097,0.41471,192.88,192.83,5.1858]
[1738893526290,25.86216448,192.87,192.82,0.063]
[1738893526707,25.86216448,192.91,192.83,25.86216448]
[1738893526899,26.27687448,192.9,192.83,25.86216448]
[1738893527216,25.86216448,192.88,192.82,5.2491]
[1738893527417,0.41471,192.87,192.82,5.2491]
[1738893527624,20.0,192.92,192.82,5.2491]
[1738893527625,25.86216448,192.89,192.82,5.2491]
[1738893527912,26.27687448,192.89,192.82,5.2491]
[1738893528498,26.27687448,192.89,192.82,31.11126448]
[1738893528698,26.27687448,192.91,192.83,25.86216448]
[1738893528914,25.86216448,192.89,192.82,5.2491]
[1738893529219,26.27687448,192.88,192.82,5.2491]
[1738893529909,25.86216448,192.86,192.82,0.063]
[1738893530110,0.41471,192.85,192.82,0.063]
[1738893530321,26.27687448,192.85,192.82,0.063]
[1738893530514,25.86216448,192.84,192.82,0.063]
[1738893531013,26.27687448,192.83,192.82,0.063]
[1738893531531,27.27687448,192.83,192.82,0.063]
[1738893531745,41.06519301,192.83,192.82,0.0001]
[1738893531908,1.0,192.79,192.78,0.063]
[1738893532116,27.27687448,192.79,192.78,0.063]
[1738893532320,26.27687448,192.79,192.78,0.063]
[1738893533318,0.41471,192.79,192.78,0.063]
[1738893533517,25.86216448,192.79,192.78,0.063]
[1738893534249,41.65048301,192.79,192.78,0.063]
[1738893534418,21.0,192.76,192.73,0.03]
[1738893534611,65.17779301,192.76,192.75,0.0001]
[1738893535038,0.37647,192.71,192.62,0.03]
[1738893535224,25.86216448,192.65,192.62,0.03]
[1738893535528,0.41471,192.64,192.62,0.03]
[1738893536912,0.41471,192.65,192.62,0.03]
[1738893537441,0.41471,192.69,192.62,25.89216448]
[1738893537735,26.27687448,192.71,192.63,25.86216448]
[1738893537931,26.27687448,192.71,192.64,25.86216448]
[1738893538127,25.86216448,192.7,192.62,25.89216448]
[1738893538321,0.41471,192.69,192.62,31.08356448]
[1738893538632,26.27687448,192.69,192.62,31.08356448]
[1738893538808,25.86216448,192.67,192.62,0.03]
[1738893539011,26.27687448,192.66,192.62,0.03]
[1738893539232,0.41471,192.66,192.62,0.03]
[1738893539438,26.27687448,192.66,192.62,0.03]
[1738893539808,0.41471,192.66,192.62,0.03]
[1738893540422,0.41471,192.68,192.62,25.89216448]
[1738893540623,26.27687448,192.69,192.62,0.03]
[1738893540826,25.86216448,192.68,192.62,0.03]
[1738893541024,0.41471,192.67,192.62,0.03]
[1738893541228,26.27687448,192.67,192.62,0.03]
[1738893541822,25.86216448,192.66,192.62,0.03]
[1738893542146,25.86216448,192.63,192.62,0.03]
[1738893542714,26.27687448,192.65,192.62,0.03]
[1738893542939,25.86216448,192.64,192.62,0.03]
[1738893543111,0.41471,192.63,192.62,0.03]
[1738893543513,0.41471,192.64,192.62,0.03]
[1738893544021,0.41471,192.69,192.63,25.86216448]
[1738893544354,0.41471,192.69,192.62,0.03]
[1738893544355,26.27687448,192.69,192.62,25.89216448]
[1738893544637,21.0,192.68,192.62,0.03]
[1738893544812,20.0,192.66,192.62,0.03]
[1738893545014,0.41471,192.65,192.62,0.03]
[1738893546026,25.86216448,192.65,192.62,0.03]
[1738893546222,25.86216448,192.63,192.62,0.03]
[1738893546434,0.41471,192.64,192.62,0.03]
[1738893546619,26.27687448,192.64,192.62,0.03]
[1738893547327,25.86216448,192.63,192.62,0.03]
[1738893547523,26.27687448,192.64,192.62,0.03]
[1738893548149,26.27687448,192.65,192.62,0.03]
[1738893548320,0.41471,192.65,192.62,0.03]
[1738893548643,25.86216448,192.63,192.62,0.03]
[1738893550533,25.86216448,192.64,192.62,0.03]
[1738893550841,0.41471,192.63,192.62,0.03]
[1738893551043,26.27687448,192.63,192.62,0.03]
[1738893553733,26.27687448,192.67,192.62,0.03]
[1738893553952,25.86216448,192.66,192.62,0.03]
[1738893554118,25.86216448,192.69,192.62,25.89216448]
[1738893554320,26.27687448,192.7,192.63,25.86216448]
[1738893554531,3.52841,192.7,192.62,0.03]
[1738893554737,25.86216448,192.68,192.62,0.03]
[1738893555127,26.27687448,192.67,192.62,0.03]
[1738893555655,25.86216448,192.63,192.62,0.03]
[1738893555955,0.41471,192.65,192.62,0.03]
[1738893556130,26.27687448,192.65,192.62,0.03]
[1738893556314,25.86216448,192.63,192.62,0.03]
[1738893556736,16.18856866,192.64,192.62,0.03]
[1738893556940,16.60327866,192.66,192.62,0.03]
[1738893558843,16.18856866,192.68,192.62,0.03]
[1738893559042,0.41471,192.67,192.62,0.03]
[1738893559539,16.18856866,192.68,192.62,5.2215]
[1738893559729,16.18856866,192.71,192.64,16.18856866]
[1738893559934,16.18856866,192.69,192.62,5.2215]
[1738893560245,16.60327866,192.68,192.62,5.2215]
[1738893560834,16.18856866,192.7,192.63,16.18856866]
[1738893561030,16.60327866,192.71,192.64,16.18856866]
[1738893561535,0.41471,192.71,192.65,16.18856866]
[1738893561735,0.063,192.73,192.68,16.18856866]
[1738893561936,0.063,192.73,192.7,16.18856866]
[1738893562138,0.063,192.73,192.69,16.18856866]
[1738893562531,0.063,192.73,192.68,16.18856866]
[1738893562730,0.063,192.73,192.69,16.18856866]
[1738893563034,0.063,192.73,192.72,16.18856866]
[1738893563248,0.063,192.73,192.7,16.18856866]
[1738893563430,0.063,192.73,192.66,4.8]
[1738893563756,16.18856866,192.7,192.66,4.8]
[1738893563967,16.60327866,192.69,192.66,4.8]
[1738893564660,0.41471,192.69,192.66,4.8]
[1738893565330,0.41471,192.72,192.66,26.17896866]
[1738893566539,0.41471,192.72,192.67,16.18856866]
[1738893566743,0.063,192.73,192.7,16.18856866]
[1738893567057,0.063,192.73,192.72,5.1888]
[1738893568125,0.063,192.73,192.72,21.37736866]
[1738893569244,0.063,192.73,192.72,20.37736866]
[1738893571740,0.063,192.73,192.7,16.18856866]
[1738893571959,0.063,192.73,192.67,21.37846866]
[1738893572259,16.18856866,192.7,192.63,21.37976866]
[1738893572444,16.60327866,192.69,192.63,5.1912]
[1738893573537,16.18856866,192.66,192.62,0.03]
[1738893573739,16.18856866,192.64,192.62,0.03]
[1738893573949,16.60327866,192.63,192.62,0.03]
[1738893574734,26.31954087,192.63,192.62,0.03]
[1738893579634,25.90483087,192.57,192.49,30.64483087]
[1738893579831,26.31954087,192.56,192.49,5.195]
[1738893580032,26.31954087,192.56,192.48,42.04623087]
[1738893581235,25.90483087,192.54,192.47,25.90483087]
[1738893581439,0.41471,192.53,192.47,25.90483087]
[1738893581960,0.41471,192.53,192.46,31.10043087]
[1738893582142,0.41471,192.53,192.48,25.90483087]
[1738893582330,0.41471,192.55,192.49,25.90483087]
[1738893582537,25.90483087,192.59,192.52,25.90483087]
[1738893582750,26.31954087,192.58,192.51,25.90483087]
[1738893583364,26.31954087,192.58,192.47,18.1843]
[1738893583365,26.31954087,192.58,192.5,25.90483087]
[1738893583866,26.31954087,192.58,192.51,25.90483087]
[1738893584062,46.31954087,192.6,192.53,25.90483087]
[1738893584245,25.90483087,192.59,192.52,25.90483087]
[1738893584448,26.31954087,192.58,192.51,25.90483087]
[1738893584756,0.41471,192.58,192.52,25.90483087]
[1738893585150,0.41471,192.58,192.51,25.90483087]
[1738893585459,26.31954087,192.58,192.52,5.1942]
[1738893585678,25.90483087,192.55,192.47,25.90483087]
[1738893585972,26.31954087,192.54,192.46,31.10063087]
[1738893587141,0.41471,192.54,192.48,25.90483087]
[1738893587345,0.41471,192.55,192.49,25.90483087]
[1738893587963,25.90483087,192.58,192.5,25.90483087]
[1738893588161,25.90483087,192.58,192.49,5.1949]
[1738893588162,26.31954087,192.6,192.53,25.93483087]
[1738893588366,0.41471,192.6,192.53,25.93483087]
[1738893588564,25.90483087,192.59,192.53,0.03]
[1738893588882,25.90483087,192.56,192.53,0.03]
[1738893589173,0.41471,192.55,192.53,0.03]
[1738893589368,26.31954087,192.56,192.53,0.03]
[1738893589745,25.90483087,192.55,192.53,0.03]
[1738893590363,25.90483087,192.56,192.53,0.03]
[1738893590551,0.41471,192.55,192.53,0.03]
[1738893591567,25.90483087,192.55,192.53,0.03]
[1738893591751,0.41471,192.54,192.53,0.03]
[1738893592341,26.31954087,192.54,192.53,0.03]
[1738893593155,29.43574087,192.54,192.53,0.03]
[1738893596365,26.31954087,192.54,192.53,0.03]
[1738893597144,0.41471,192.54,192.53,0.03]
[1738893597351,0.41471,192.55,192.53,0.03]
[1738893597558,26.31954087,192.55,192.53,0.03]
[1738893597778,25.90483087,192.54,192.53,0.03]
[1738893598761,42.4328794,192.54,192.53,0.03]
[1738893599644,42.8093494,192.54,192.53,0.03]
[1738893599845,13.41184853,192.48,192.42,0.03]
[1738893600152,25.90483087,192.45,192.42,0.03]
[1738893600348,26.31954087,192.44,192.42,0.03]
[1738893600680,0.41471,192.44,192.42,0.03]
[1738893600983,0.41471,192.51,192.43,20.0]
[1738893601189,0.41471,192.53,192.47,25.90483087]
[1738893601340,0.41471,192.52,192.42,0.03]
[1738893601639,20.0,192.51,192.42,0.03]
[1738893601847,1.5124,192.54,192.43,20.0]
[1738893602045,0.41471,192.53,192.44,20.25098]
[1738893602367,25.90483087,192.61,192.52,25.90483087]
[1738893602572,26.31954087,192.61,192.54,25.90483087]
[1738893603450,25.90483087,192.58,192.52,5.1942]
[1738893603869,25.90483087,192.54,192.5,4.76]
[1738893604065,13.41184853,192.62,192.5,4.76]
[1738893604066,0.41471,192.59,192.52,25.90483087]
[1738893604451,0.12549,192.62,192.5,9.9547]
[1738893604664,0.37647,192.59,192.5,4.76]
[1738893604861,0.37647,192.59,192.42,0.03]
[1738893604862,3.1162,192.54,192.42,0.03]
[1738893605055,25.90483087,192.5,192.44,20.0]
[1738893605251,25.90483087,192.52,192.45,25.90483087]
[1738893605476,4.6487,192.54,192.47,25.90483087]
[1738893605477,27.85204087,192.54,192.47,25.90483087]
[1738893605785,25.90483087,192.53,192.46,25.90483087]
[1738893605952,0.41471,192.52,192.45,25.90483087]
[1738893606794,0.41471,192.52,192.46,5.1958]
[1738893607462,0.41471,192.52,192.46,31.10063087]
[1738893607883,0.41471,192.53,192.46,31.10063087]
[1738893608083,25.90483087,192.54,192.46,31.10063087]
[1738893608084,0.41471,192.59,192.52,25.90483087]
[1738893608378,26.31954087,192.6,192.53,25.90483087]
[1738893608581,13.41184853,192.55,192.44,5.1964]
[1738893608779,20.0,192.52,192.42,5.2267]
[1738893608969,20.0,192.5,192.42,0.03]
[1738893609280,13.41184853,192.48,192.42,0.03]
[1738893609483,20.0,192.45,192.42,0.03]
[1738893609680,25.90483087,192.43,192.42,0.03]
[1738893609868,39.4421694,192.43,192.42,0.03]
[1738893610181,42.8111494,192.43,192.42,0.03]
[1738893610427,30.56183087,192.43,192.42,0.03]
[1738893610575,30.97654087,192.43,192.42,0.03]
[1738893610960,26.31954087,192.43,192.42,0.03]
[1738893611163,27.90483087,192.43,192.42,0.03]
[1738893611386,20.0,192.4,192.33,0.03]
[1738893611673,1.41471,192.39,192.33,0.03]
[1738893611882,25.90483087,192.34,192.33,0.03]
[1738893612582,25.90483087,192.36,192.33,0.03]
[1738893612788,26.31954087,192.39,192.33,0.03]
[1738893613084,25.90483087,192.41,192.34,25.90483087]
[1738893613266,32.34563087,192.43,192.36,25.90483087]
[1738893613457,25.90483087,192.45,192.37,25.90483087]
[1738893613659,25.90483087,192.46,192.35,4.84]
[1738893613889,25.90483087,192.49,192.42,25.90483087]
[1738893614068,6.0084,192.53,192.45,25.90483087]
[1738893614069,25.90483087,192.52,192.45,25.90483087]
[1738893614274,0.41471,192.53,192.47,25.90483087]
[1738893614473,0.41471,192.53,192.44,5.1963]
[1738893614474,26.31954087,192.53,192.46,25.90483087]
[1738893614704,0.41471,192.53,192.47,26.03032087]